[Event "21st Sants Open 2019"]
[Site "Cotxeres de Sants"]
[Date "2019.08.27"]
[Round "5.7"]
[White "Antal, Gergely"]
[Black "Domingo Nunez, Alejandro"]
[Result "1-0"]
[ECO "B48"]
[WhiteElo "2549"]
[BlackElo "2392"]
[Annotator "ChessBase"]
[PlyCount "59"]
[EventDate "2019.08.22"]
[EventType "swiss"]
[EventCountry "ESP"]
[SourceTitle "playchess.com"]
[Source "ChessBase"]
[SourceQuality "1"]
[TimeControl "40/5400+30:1800+30"]

1. e4 {[%emt 0:04:16]} c5 {[%emt 0:00:00]} 2. Nf3 {[%emt 0:00:06]} e6 {[%emt 0:00:00]} 3. d4 {[%emt 0:00:06]} cxd4 {[%emt 0:00:00]} 4. Nxd4 {[%emt 0:00:03]} Nc6 {[%emt 0:00:02]} 5. Nc3 {[%emt 0:00:04]} Qc7 {[%emt 0:00:04]} 6. Be3 {[%emt 0:00:21]} a6 {[%emt 0:00:05]} 7. a3 {[%emt 0:00:07]} Be7 {[%emt 0:00:26]} 8. f4 {[%emt 0:00:27]} b5 {[%emt 0:01:08]} 9. Nxc6 {[%emt 0:00:09]} dxc6 {[%emt 0:00:53]} 10. Qg4 {[%emt 0:00:12]} g6 {[%emt 0:02:11]} 11. Qh3 {[%emt 0:08:12]} f5 {[%emt 0:28:29]} 12. e5 {[%emt 0:15:37]} Bb7 {[%emt 0:06:29]} 13. Be2 {[%emt 0:09:19]} h5 {[%emt 0:03:49]} 14. Qg3 {[%emt 0:03:34]} Kf7 {[%emt 0:00:11]} 15. Qf2 {[%emt 0:05:39]} c5 {[%emt 0:00:31]} 16. Bf3 {[%emt 0:00:17]} Nh6 {[%emt 0:11:02]} 17. h3 {[%emt 0:01:04]} Rhd8 {[%emt 0:03:25]} 18. Bxb7 {[%emt 0:00:44]} Qxb7 {[%emt 0:00:03]} 19. O-O {[%emt 0:00:52]} Qc6 {[%emt 0:01:46]} 20. Rfd1 {[%emt 0:03:43]} Kg7 {[%emt 0:00:42]} 21. Ne2 {[%emt 0:09:37]} Nf7 {[%emt 0:11:46]} 22. c3 a5 {[%emt 0:08:32]} 23. b4 {[%emt 0:04:08]} axb4 24. axb4 {[%emt 0:00:08]} Rd3 {[%emt 0:02:36]} 25. Bxc5 {[%emt 0:03:37]} Bxc5 {[%emt 0:07:41]} 26. bxc5 {[%emt 0:00:07]} Qd5 {[%emt 0:00:39]} 27. Nd4 {[%emt 0:00:41]} Rxa1 {[%emt 0:03:03]} 28. Rxa1 {[%emt 0:00:01]} Rxc3 {[%emt 0:00:00]} 29. Ra6 {[%emt 0:01:25]} Nd8 {[%emt 0:02:11]} 30. Rd6 {[%emt 0:01:36]} 1-0

[Event "21st Sants Open 2019"]
[Site "Cotxeres de Sants"]
[Date "2019.08.27"]
[Round "5.9"]
[White "Bobadilla Viera, Jorge Samuel"]
[Black "Lagunow, Raphael"]
[Result "1/2-1/2"]
[ECO "B30"]
[WhiteElo "2307"]
[BlackElo "2431"]
[Annotator "NA"]
[PlyCount "84"]
[EventDate "2019.08.22"]
[EventType "swiss"]
[EventCountry "ESP"]
[SourceTitle "playchess.com"]
[Source "ChessBase"]
[SourceQuality "1"]
[TimeControl "40/5400+30:1800+30"]

1. e4 {[%emt 0:05:02]} c5 {[%emt 0:00:00]} 2. Nf3 {[%emt 0:00:04]} Nc6 {[%emt 0:00:00]} 3. Nc3 {[%emt 0:00:49]} e5 {[%emt 0:00:41]} 4. Bc4 {[%emt 0:00:08]} Be7 {[%emt 0:00:07]} 5. d3 {[%emt 0:00:07]} d6 {[%emt 0:02:45]} 6. O-O {[%emt 0:00:15]} Nf6 {[%emt 0:03:13]} 7. Ng5 {[%emt 0:02:09]} O-O {[%emt 0:00:22]} 8. f4 {[%emt 0:00:17]} h6 {[%emt 0:04:47]} 9. Nf3 {[%emt 0:02:09]} exf4 {[%emt 0:09:11]} 10. Bxf4 {[%emt 0:00:16]} Be6 {[%emt 0:04:55]} 11. Nd5 {[%emt 0:10:35]} Qd7 {[%emt 0:02:23]} 12. Qd2 {[%emt 0:08:08]} Bd8 {[%emt 0:10:33]} 13. h3 {[%emt 0:15:32]} a6 {[%emt 0:09:51]} 14. Rae1 {[%emt 0:05:00]} Bxd5 {[%emt 0:07:33]} 15. Bxd5 {[%emt 0:00:37]} Ba5 {[%emt 0:10:22]} 16. c3 {[%emt 0:04:50]} Nxd5 {[%emt 0:00:14]} 17. exd5 {[%emt 0:00:09]} Ne7 {[%emt 0:00:06]} 18. Re4 {[%emt 0:16:29]} h5 {[%emt 0:10:14]} 19. Bh2 {[%emt 0:12:23]} f6 {[%emt 0:17:20]} 20. Re6 {[%emt 0:00:58]} Bc7 {[%emt 0:00:05]} 21. c4 {[%emt 0:00:54]} Ng6 {[%emt 0:01:45]} 22. d4 {[%emt 0:03:10]} Rfe8 {[%emt 0:00:51]} 23. Rfe1 {[%emt 0:02:14]} cxd4 {[%emt 0:01:15]} 24. Nxd4 {[%emt 0:00:30]} Ne5 {[%emt 0:00:05]} 25. b3 {[%emt 0:01:49]} Bb6 {[%emt 0:00:14]} 26. Kh1 {[%emt 0:00:15]} Bxd4 {[%emt 0:00:50]} 27. Rxe8+ {[%emt 0:00:01]} Rxe8 {[%emt 0:00:01]} 28. Qxd4 {[%emt 0:00:10]} Qc7 {[%emt 0:02:07]} 29. Bg3 {[%emt 0:02:05]} b5 {[%emt 0:01:30]} 30. cxb5 {[%emt 0:01:41]} axb5 {[%emt 0:00:01]} 31. Bxe5 {[%emt 0:00:08]} fxe5 {[%emt 0:01:15]} 32. Qb4 {[%emt 0:00:56]} Qc5 {[%emt 0:00:51]} 33. Qxc5 {[%emt 0:00:30]} dxc5 {[%emt 0:00:01]} 34. d6 {[%emt 0:00:18]} e4 {[%emt 0:00:31]} 35. d7 {[%emt 0:00:16]} Rd8 {[%emt 0:00:04]} 36. Rxe4 {[%emt 0:00:14]} Rxd7 {[%emt 0:00:04]} 37. Re5 {[%emt 0:01:51]} Rc7 {[%emt 0:00:15]} 38. Rxh5 {[%emt 0:00:31]} c4 {[%emt 0:01:55]} 39. bxc4 {[%emt 0:00:08]} bxc4 {[%emt 0:00:05]} 40. Rf5 {[%emt 0:00:00]} c3 {[%emt 0:00:00]} 41. Rf1 {[%emt 0:00:22]} Ra7 {[%emt 0:01:22]} 42. Rc1 {[%emt 0:00:06]} Rxa2 {[%emt 0:00:24]} 1/2-1/2

[Event "21st Sants Open 2019"]
[Site "Cotxeres de Sants"]
[Date "2019.08.27"]
[Round "5.12"]
[White "Santos Latasa, Jaime"]
[Black "Dominguez Pons, Eric"]
[Result "1-0"]
[ECO "B12"]
[WhiteElo "2586"]
[BlackElo "2390"]
[Annotator "ChessBase"]
[PlyCount "73"]
[EventDate "2019.08.22"]
[EventType "swiss"]
[EventCountry "ESP"]
[SourceTitle "playchess.com"]
[Source "ChessBase"]
[SourceQuality "1"]
[TimeControl "40/5400+30:1800+30"]

1. e4 {[%emt 0:00:00]} c6 {[%emt 0:00:12]} 2. d4 {[%emt 0:00:00]} d5 {[%emt 0:00:21]} 3. e5 {[%emt 0:00:00]} Bf5 {[%emt 0:01:19]} 4. Nf3 {[%emt 0:00:10]} e6 {[%emt 0:00:54]} 5. Be2 {[%emt 0:00:06]} Nd7 {[%emt 0:01:14]} 6. O-O {[%emt 0:00:11]} Ne7 {[%emt 0:05:17]} 7. Nh4 {[%emt 0:02:16]} c5 {[%emt 0:02:47]} 8. c3 {[%emt 0:00:10]} Qb6 {[%emt 0:03:41]} 9. Qa4 {[%emt 0:03:01]} Bxb1 {[%emt 0:28:35]} 10. Rxb1 {[%emt 0:01:21]} Nc6 {[%emt 0:00:23]} 11. Nf3 {[%emt 0:00:08]} Be7 {[%emt 0:01:39]} 12. Be3 {[%emt 0:01:21]} O-O {[%emt 0:01:46]} 13. b4 {[%emt 0:03:22]} c4 {[%emt 0:07:54]} 14. Qc2 {[%emt 0:03:21]} Qc7 {[%emt 0:02:14]} 15. Nd2 {[%emt 0:02:58]} Kh8 {[%emt 0:02:51]} 16. f4 {[%emt 0:02:35]} f5 {[%emt 0:02:18]} 17. g4 {[%emt 0:00:35]} g6 {[%emt 0:01:25]} 18. Kh1 {[%emt 0:00:06]} b5 {[%emt 0:02:08]} 19. a4 {[%emt 0:00:24]} bxa4 {[%emt 0:01:03]} 20. b5 {[%emt 0:00:37]} Nd8 {[%emt 0:00:49]} 21. Qxa4 {[%emt 0:00:12]} Nb6 {[%emt 0:01:59]} 22. Qa6 {[%emt 0:00:24]} Nf7 {[%emt 0:01:55]} 23. gxf5 {[%emt 0:00:28]} exf5 {[%emt 0:01:58]} 24. Nf3 {[%emt 0:01:18]} Nd8 {[%emt 0:01:08]} 25. Rg1 {[%emt 0:00:11]} Ne6 {[%emt 0:00:43]} 26. h4 {[%emt 0:01:00]} Qd7 {[%emt 0:05:30]} 27. Rg2 {[%emt 0:01:12]} Rg8 {[%emt 0:01:04]} 28. Rbg1 {[%emt 0:05:41]} Nc7 {[%emt 0:03:35]} 29. Qa1 {[%emt 0:00:06]} a6 {[%emt 0:01:41]} 30. bxa6 {[%emt 0:00:26]} Rxa6 {[%emt 0:00:48]} 31. Qe1 {[%emt 0:00:13]} Ne6 {[%emt 0:03:40]} 32. h5 {[%emt 0:01:17]} Nf8 {[%emt 0:00:17]} 33. Bd1 {[%emt 0:03:47]} Na8 {[%emt 0:01:38]} 34. Bc2 {[%emt 0:00:23]} Rg7 {[%emt 0:01:14]} 35. Qg3 {[%emt 0:02:00]} Nc7 {[%emt 0:00:27]} 36. Qh3 {[%emt 0:00:10]} Ne8 {[%emt 0:00:31]} 37. hxg6 {[%emt 0:00:24]} 1-0

[Event "21st Sants Open 2019"]
[Site "Cotxeres de Sants"]
[Date "2019.08.27"]
[Round "5.13"]
[White "Martens, Martin"]
[Black "Harika, Dronavalli"]
[Result "1/2-1/2"]
[ECO "C24"]
[WhiteElo "2364"]
[BlackElo "2495"]
[Annotator "ChessBase"]
[PlyCount "40"]
[EventDate "2019.08.22"]
[EventType "swiss"]
[EventCountry "ESP"]
[SourceTitle "playchess.com"]
[Source "ChessBase"]
[SourceQuality "1"]
[TimeControl "40/5400+30:1800+30"]

1. e4 {[%emt 0:00:00]} e5 {[%emt 0:01:49]} 2. Bc4 {[%emt 0:00:00]} Nf6 {[%emt 0:00:20]} 3. d3 {[%emt 0:00:12]} c6 {[%emt 0:00:15]} 4. Nf3 {[%emt 0:00:37]} d5 {[%emt 0:00:11]} 5. Bb3 {[%emt 0:00:27]} a5 {[%emt 0:00:23]} 6. a4 {[%emt 0:01:04]} Bb4+ {[%emt 0:00:16]} 7. Bd2 {[%emt 0:00:48]} O-O {[%emt 0:02:05]} 8. Bxb4 {[%emt 0:07:09]} axb4 {[%emt 0:00:28]} 9. exd5 {[%emt 0:01:26]} Nxd5 {[%emt 0:12:22]} 10. O-O {[%emt 0:06:27]} Qf6 {[%emt 0:02:15]} 11. Qe1 {[%emt 0:05:47]} Re8 {[%emt 0:05:43]} 12. Nbd2 {[%emt 0:06:41]} Bg4 {[%emt 0:05:22]} 13. Qe4 {[%emt 0:03:31]} Bf5 {[%emt 0:01:15]} 14. Qh4 {[%emt 0:01:15]} Qxh4 {[%emt 0:00:56]} 15. Nxh4 {[%emt 0:00:09]} Be6 {[%emt 0:00:25]} 16. Nhf3 {[%emt 0:01:54]} Nd7 {[%emt 0:00:44]} 17. Rfe1 {[%emt 0:01:33]} f6 {[%emt 0:02:35]} 18. d4 {[%emt 0:03:47]} exd4 {[%emt 0:03:36]} 19. Nxd4 {[%emt 0:00:14]} Bf7 {[%emt 0:00:14]} 20. Ne4 {[%emt 0:00:22]} Kf8 {[%emt 0:10:13]} 1/2-1/2

[Event "21st Sants Open 2019"]
[Site "Cotxeres de Sants"]
[Date "2019.08.27"]
[Round "5.15"]
[White "Morais Carreras, Javier"]
[Black "Rios Torondell, Jaume"]
[Result "0-1"]
[ECO "C00"]
[WhiteElo "1939"]
[BlackElo "1891"]
[Annotator "NA"]
[PlyCount "60"]
[EventDate "2019.08.22"]
[EventType "swiss"]
[EventCountry "ESP"]
[SourceTitle "playchess.com"]
[Source "ChessBase"]
[SourceQuality "1"]
[TimeControl "40/5400+30:1800+30"]

1. e4 {[%emt 0:00:00]} e6 {[%emt 0:04:39]} 2. d3 {[%emt 0:00:00]} d5 {[%emt 0:00:08]} 3. Nd2 {[%emt 0:00:00]} Nc6 {[%emt 0:00:10]} 4. Ngf3 {[%emt 0:00:22]} Nf6 {[%emt 0:00:28]} 5. g3 {[%emt 0:00:35]} dxe4 {[%emt 0:00:06]} 6. dxe4 {[%emt 0:00:12]} e5 {[%emt 0:00:04]} 7. Bg2 {[%emt 0:01:09]} Bg4 {[%emt 0:00:29]} 8. O-O {[%emt 0:01:38]} Nd4 {[%emt 0:21:02]} 9. c3 {[%emt 0:03:50]} Nxf3+ {[%emt 0:02:21]} 10. Bxf3 {[%emt 0:01:14]} Bh3 {[%emt 0:04:58]} 11. Re1 {[%emt 0:04:18]} Qd7 {[%emt 0:08:53]} 12. Qb3 {[%emt 0:02:10]} Bc5 {[%emt 0:06:07]} 13. Qxb7 {[%emt 0:08:11]} O-O {[%emt 0:00:36]} 14. Qa6 {[%emt 0:00:34]} Ng4 {[%emt 0:01:59]} 15. Bxg4 {[%emt 0:05:43]} Qxg4 {[%emt 0:02:20]} 16. Qe2 {[%emt 0:01:02]} Qe6 {[%emt 0:02:03]} 17. b4 {[%emt 0:02:55]} Be7 {[%emt 0:08:11]} 18. Nb3 {[%emt 0:04:50]} h5 {[%emt 0:06:45]} 19. Be3 {[%emt 0:01:08]} Qg6 {[%emt 0:02:43]} 20. Bc5 {[%emt 0:02:42]} Bxc5 {[%emt 0:07:20]} 21. Nxc5 {[%emt 0:00:14]} h4 {[%emt 0:00:02]} 22. Qe3 {[%emt 0:03:52]} f5 {[%emt 0:06:04]} 23. exf5 {[%emt 0:04:32]} Rxf5 {[%emt 0:00:34]} 24. Qe4 {[%emt 0:01:14]} Raf8 {[%emt 0:03:09]} 25. Qc4+ {[%emt 0:08:26]} Kh8 {[%emt 0:03:28]} 26. Qxh4+ {[%emt 0:02:10]} Rh5 {[%emt 0:00:01]} 27. Qe4 {[%emt 0:01:01]} Qf6 {[%emt 0:04:05]} 28. Qe2 {[%emt 0:01:55]} Bg4 {[%emt 0:00:49]} 29. Nd7 {[%emt 0:20:45]} Qf5 {[%emt 0:01:00]} 30. Qxe5 {[%emt 0:03:32]} Qxf2+ {[%emt 0:00:26]} 0-1

[Event "21st Sants Open 2019"]
[Site "Cotxeres de Sants"]
[Date "2019.08.27"]
[Round "5.16"]
[White "Romero Moreno, Felix"]
[Black "Vargas Drechsler, Carlos"]
[Result "1-0"]
[ECO "D45"]
[WhiteElo "1914"]
[BlackElo "1915"]
[Annotator "NA"]
[PlyCount "77"]
[EventDate "2019.08.22"]
[EventType "swiss"]
[EventCountry "ESP"]
[SourceTitle "playchess.com"]
[Source "ChessBase"]
[SourceQuality "1"]
[TimeControl "40/5400+30:1800+30"]

1. d4 {[%emt 0:00:00]} d5 {[%emt 0:00:00]} 2. c4 {[%emt 0:00:00]} e6 {[%emt 0:00:16]} 3. Nc3 {[%emt 0:00:19]} Nf6 {[%emt 0:00:51]} 4. Nf3 {[%emt 0:01:12]} c6 {[%emt 0:02:21]} 5. e3 {[%emt 0:00:32]} Nbd7 {[%emt 0:00:58]} 6. Qc2 {[%emt 0:00:08]} Bd6 {[%emt 0:01:07]} 7. b3 {[%emt 0:01:08]} O-O {[%emt 0:00:45]} 8. h3 {[%emt 0:02:24]} e5 {[%emt 0:06:12]} 9. dxe5 {[%emt 0:14:46]} Nxe5 {[%emt 0:00:32]} 10. Nxe5 {[%emt 0:05:27]} Bxe5 {[%emt 0:00:17]} 11. Bb2 {[%emt 0:00:26]} Qa5 {[%emt 0:11:38]} 12. f4 {[%emt 0:18:23]} Bf5 {[%emt 0:03:27]} 13. Bd3 {[%emt 0:00:45]} Bxd3 {[%emt 0:00:48]} 14. Qxd3 {[%emt 0:00:11]} dxc4 {[%emt 0:02:02]} 15. bxc4 {[%emt 0:11:29]} Rad8 {[%emt 0:02:41]} 16. Qc2 {[%emt 0:01:03]} Bc7 {[%emt 0:04:24]} 17. O-O {[%emt 0:06:11]} Qc5 {[%emt 0:03:27]} 18. Nd1 {[%emt 0:02:21]} Rxd1 {[%emt 0:12:31]} 19. Raxd1 {[%emt 0:01:51]} Qxe3+ {[%emt 0:00:32]} 20. Kh1 {[%emt 0:07:42]} Ne4 {[%emt 0:03:28]} 21. Rf3 {[%emt 0:04:11]} Ng3+ {[%emt 0:07:00]} 22. Kh2 {[%emt 0:01:54]} Qe4 {[%emt 0:09:33]} 23. Qc3 {[%emt 0:02:38]} Nh5 {[%emt 0:12:21]} 24. Re1 {[%emt 0:04:27]} Qg6 {[%emt 0:02:05]} 25. g3 {[%emt 0:01:06]} Rd8 {[%emt 0:03:09]} 26. Rfe3 {[%emt 0:00:54]} f6 {[%emt 0:02:44]} 27. c5 {[%emt 0:03:40]} Nxf4 {[%emt 0:01:56]} 28. Qb3+ {[%emt 0:04:39]} Nd5 {[%emt 0:00:49]} 29. Re4 {[%emt 0:00:51]} Kf8 {[%emt 0:01:31]} 30. Qf3 {[%emt 0:01:29]} Ba5 {[%emt 0:02:59]} 31. R1e2 {[%emt 0:00:38]} Nb4 {[%emt 0:00:57]} 32. Qa3 {[%emt 0:00:57]} b6 {[%emt 0:01:26]} 33. cxb6 {[%emt 0:00:02]} axb6 {[%emt 0:01:04]} 34. Rxb4 {[%emt 0:01:06]} Bxb4 {[%emt 0:00:17]} 35. Qxb4+ {[%emt 0:00:01]} c5 {[%emt 0:00:02]} 36. Qxb6 {[%emt 0:00:52]} Qd3 {[%emt 0:00:02]} 37. Qxc5+ {[%emt 0:00:27]} Kg8 {[%emt 0:00:03]} 38. Qc2 {[%emt 0:01:19]} Qf3 {[%emt 0:00:31]} 39. Qb3+ {Rf8} 1-0

[Event "21st Sants Open 2019"]
[Site "Cotxeres de Sants"]
[Date "2019.08.27"]
[Round "5.17"]
[White "Planella Sanchez, Jordi"]
[Black "Manukonda Arun"]
[Result "1/2-1/2"]
[ECO "B99"]
[WhiteElo "1919"]
[BlackElo "1899"]
[Annotator "NA"]
[PlyCount "179"]
[EventDate "2019.08.22"]
[EventType "swiss"]
[EventCountry "ESP"]
[SourceTitle "playchess.com"]
[Source "ChessBase"]
[SourceQuality "1"]
[TimeControl "40/5400+30:1800+30"]

1. e4 {[%emt 0:00:18]} c5 {[%emt 0:26:19]} 2. Nf3 {[%emt 0:00:48]} d6 {[%emt 0:00:00]} 3. d4 {[%emt 0:01:25]} cxd4 {[%emt 0:00:01]} 4. Nxd4 {[%emt 0:00:13]} Nf6 {[%emt 0:00:01]} 5. Nc3 {[%emt 0:00:28]} a6 {[%emt 0:00:01]} 6. Bg5 {[%emt 0:00:23]} e6 {[%emt 0:00:01]} 7. f4 {[%emt 0:00:23]} Be7 {[%emt 0:00:01]} 8. Qf3 {[%emt 0:00:24]} Qc7 {[%emt 0:00:01]} 9. O-O-O {[%emt 0:00:30]} Nbd7 {[%emt 0:00:01]} 10. g4 {[%emt 0:03:35]} b5 {[%emt 0:00:01]} 11. Bd3 {[%emt 0:10:21]} Bb7 {[%emt 0:00:01]} 12. Rhe1 {[%emt 0:12:42]} Nc5 {[%emt 0:00:01]} 13. Bxf6 {[%emt 0:11:03]} gxf6 {[%emt 0:00:12]} 14. Kb1 {[%emt 0:04:42]} b4 {[%emt 0:00:10]} 15. Nce2 {[%emt 0:01:57]} a5 {[%emt 0:07:27]} 16. Bb5+ {[%emt 0:08:00]} Kf8 {[%emt 0:00:09]} 17. Bd3 {[%emt 0:09:00]} a4 {[%emt 0:01:01]} 18. Qe3 {[%emt 0:02:28]} b3 {[%emt 0:08:59]} 19. cxb3 {[%emt 0:02:07]} axb3 {[%emt 0:01:22]} 20. a3 {[%emt 0:00:17]} Kg7 {[%emt 0:07:34]} 21. Ng3 {[%emt 0:05:41]} Rhc8 {[%emt 0:02:07]} 22. Rc1 {[%emt 0:01:28]} Qa5 {[%emt 0:02:20]} 23. Bc4 {[%emt 0:02:39]} Ba6 {[%emt 0:05:47]} 24. Bxa6 {[%emt 0:01:28]} Qxa6 {[%emt 0:00:16]} 25. Nxb3 {[%emt 0:00:58]} Rcb8 {[%emt 0:07:28]} 26. Nxc5 {[%emt 0:01:39]} dxc5 {[%emt 0:00:01]} 27. Nh5+ {[%emt 0:03:21]} Kf8 {[%emt 0:00:05]} 28. f5 {[%emt 0:01:02]} Qxa3 {[%emt 0:00:42]} 29. Qxa3 {[%emt 0:04:10]} Rxa3 {[%emt 0:00:02]} 30. Nf4 {[%emt 0:01:54]} Bd6 {[%emt 0:00:45]} 31. Ng2 {[%emt 0:03:05]} Be5 {[%emt 0:00:48]} 32. Re2 {[%emt 0:00:35]} Rab3 {[%emt 0:00:16]} 33. Rcc2 {[%emt 0:00:14]} c4 {[%emt 0:00:23]} 34. Kc1 {[%emt 0:00:49]} R8b4 {[%emt 0:03:34]} 35. Ne3 {[%emt 0:02:15]} Ra4 {[%emt 0:02:06]} 36. Rxc4 {[%emt 0:01:30]} Ra1+ {[%emt 0:00:55]} 37. Kd2 {[%emt 0:00:24]} Rxb2+ {[%emt 0:00:02]} 38. Rc2 {[%emt 0:00:24]} Rb3 {[%emt 0:02:29]} 39. Rf2 {[%emt 0:02:19]} Bd4 {[%emt 0:00:51]} 40. Re2 {[%emt 0:00:00]} Raa3 {[%emt 0:00:00]} 41. Rc8+ {[%emt 0:03:58]} Kg7 {[%emt 0:04:23]} 42. Nc2 {[%emt 0:01:55]} Rb2 {[%emt 0:04:28]} 43. Kd1 {[%emt 0:04:32]} Rb1+ {[%emt 0:02:36]} 44. Kd2 {[%emt 0:00:09]} Ra2 {[%emt 0:00:21]} 45. Rc7 {[%emt 0:03:48]} Be5 {[%emt 0:00:19]} 46. Rc6 {[%emt 0:00:23]} Bf4+ {[%emt 0:03:51]} 47. Kc3 {[%emt 0:01:01]} e5 {[%emt 0:00:25]} 48. Rd6 {[%emt 0:06:40]} Rh1 {[%emt 0:00:53]} 49. Rg2 {[%emt 0:00:38]} Rxh2 {[%emt 0:01:16]} 50. Rxh2 {[%emt 0:00:09]} Bxh2 {[%emt 0:00:01]} 51. Rd1 {[%emt 0:01:46]} Ra4 {[%emt 0:01:12]} 52. Kd3 {[%emt 0:00:26]} Ra8 {[%emt 0:02:01]} 53. Ke2 {[%emt 0:01:05]} Rb8 {[%emt 0:00:19]} 54. Ne3 {[%emt 0:00:54]} Rb2+ {[%emt 0:00:44]} 55. Kf3 {[%emt 0:01:13]} Bf4 {[%emt 0:00:26]} 56. Nd5 {[%emt 0:01:03]} Rb3+ {[%emt 0:00:03]} 57. Kf2 {[%emt 0:00:22]} Bg5 {[%emt 0:00:55]} 58. Rh1 {[%emt 0:01:01]} Rd3 {[%emt 0:00:27]} 59. Rh5 {[%emt 0:01:07]} Rd1 {[%emt 0:01:25]} 60. Rh3 {[%emt 0:00:20]} Rd4 {[%emt 0:01:18]} 61. Kf3 {[%emt 0:00:39]} h6 {[%emt 0:02:15]} 62. Rh1 {[%emt 0:00:16]} Rd3+ {[%emt 0:01:01]} 63. Kf2 {[%emt 0:00:17]} Kf8 {[%emt 0:01:51]} 64. Kg2 {[%emt 0:01:36]} Rb3 {[%emt 0:02:26]} 65. Kf2 {[%emt 0:00:45]} Ke8 {[%emt 0:00:45]} 66. Kg2 {[%emt 0:00:49]} Kd7 {[%emt 0:03:44]} 67. Rh3 {[%emt 0:00:45]} Rb2+ {[%emt 0:00:13]} 68. Kf3 {[%emt 0:00:09]} Kd6 {[%emt 0:00:34]} 69. Rh1 {[%emt 0:00:21]} Kc5 {[%emt 0:00:52]} 70. Rd1 {[%emt 0:04:09]} Kc4 {[%emt 0:01:22]} 71. Ne3+ {[%emt 0:00:41]} Kc5 {[%emt 0:06:36]} 72. Rd5+ {[%emt 0:01:36]} Kc6 {[%emt 0:00:04]} 73. Rd3 {[%emt 0:01:03]} Bh4 {[%emt 0:01:09]} 74. Rc3+ {[%emt 0:00:28]} Kd7 {[%emt 0:00:31]} 75. Nd5 {[%emt 0:00:55]} Rf2+ {[%emt 0:01:17]} 76. Ke3 {[%emt 0:00:06]} Rg2 {[%emt 0:00:12]} 77. Rc7+ {[%emt 0:00:11]} Kd6 {[%emt 0:02:39]} 78. Rxf7 {[%emt 0:00:11]} Rg3+ {[%emt 0:00:45]} 79. Ke2 {[%emt 0:00:11]} Kc5 {[%emt 0:05:34]} 80. Nxf6 {[%emt 0:00:30]} Bxf6 {[%emt 0:00:20]} 81. Rxf6 {[%emt 0:00:05]} Kd4 {[%emt 0:00:04]} 82. Rxh6 {[%emt 0:03:00]} Rxg4 {[%emt 0:00:03]} 83. f6 {[%emt 0:01:58]} Rxe4+ {[%emt 0:00:25]} 84. Kf3 {[%emt 0:00:32]} Rf4+ {[%emt 0:00:07]} 85. Kg3 {[%emt 0:00:15]} Kd5 {[%emt 0:01:21]} 86. Rg6 {[%emt 0:00:30]} Ke6 {[%emt 0:00:14]} 87. Rh6 {[%emt 0:00:29]} Kf7 {[%emt 0:00:18]} 88. Kg2 {[%emt 0:00:13]} e4 {[%emt 0:00:42]} 89. Kg3 {[%emt 0:00:16]} Rf1 {[%emt 0:00:19]} 90. Rh4 {[%emt 0:00:27]} 1/2-1/2

[Event "21st Sants Open 2019"]
[Site "Cotxeres de Sants"]
[Date "2019.08.27"]
[Round "5.18"]
[White "Vadillo, Torre Ismael"]
[Black "Paton Alvarez, Ivan"]
[Result "0-1"]
[ECO "D31"]
[WhiteElo "1616"]
[BlackElo "1544"]
[Annotator "NA"]
[PlyCount "88"]
[EventDate "2019.08.22"]
[EventType "swiss"]
[EventCountry "ESP"]
[SourceTitle "playchess.com"]
[Source "ChessBase"]
[SourceQuality "1"]
[TimeControl "40/5400+30:1800+30"]

1. d4 {[%emt 0:00:00]} d5 {[%emt 0:00:00]} 2. c4 {[%emt 0:00:00]} e6 {[%emt 0:00:00]} 3. Nc3 {[%emt 0:00:00]} a6 {[%emt 0:00:00]} 4. cxd5 {[%emt 0:07:10]} exd5 {[%emt 0:00:23]} 5. Nf3 {[%emt 0:00:11]} Nf6 {[%emt 0:00:26]} 6. Bg5 {[%emt 0:00:46]} Be7 {[%emt 0:00:31]} 7. e3 {[%emt 0:00:20]} b6 {[%emt 0:00:25]} 8. Bd3 {[%emt 0:06:07]} Bb7 {[%emt 0:01:26]} 9. Qc2 {[%emt 0:02:19]} Nbd7 {[%emt 0:00:52]} 10. O-O {[%emt 0:03:28]} O-O {[%emt 0:00:38]} 11. Bf4 {[%emt 0:10:45]} c5 {[%emt 0:06:32]} 12. b3 {[%emt 0:07:07]} Rc8 {[%emt 0:03:57]} 13. Qb2 {[%emt 0:02:54]} Nh5 {[%emt 0:11:19]} 14. Ne2 {[%emt 0:11:35]} Nxf4 {[%emt 0:04:25]} 15. Nxf4 {[%emt 0:00:09]} Re8 {[%emt 0:31:15]} 16. Rac1 {[%emt 0:01:04]} Bd6 {[%emt 0:01:39]} 17. Nh3 {[%emt 0:05:58]} Qe7 {[%emt 0:02:18]} 18. Qe2 {[%emt 0:00:42]} cxd4 {[%emt 0:06:45]} 19. Nxd4 {[%emt 0:03:27]} Nc5 {[%emt 0:05:12]} 20. Nf5 {[%emt 0:03:35]} Qf6 {[%emt 0:01:05]} 21. Nxd6 {[%emt 0:02:29]} Qxd6 {[%emt 0:00:10]} 22. Bf5 {[%emt 0:01:02]} Rcd8 {[%emt 0:02:00]} 23. Qc2 {[%emt 0:07:41]} g6 {[%emt 0:04:53]} 24. Bg4 {[%emt 0:01:47]} h5 {[%emt 0:05:41]} 25. Bf3 {[%emt 0:00:58]} Bc8 {[%emt 0:01:06]} 26. Nf4 {[%emt 0:01:15]} d4 {[%emt 0:06:18]} 27. exd4 {[%emt 0:01:59]} Nxb3 {[%emt 0:02:30]} 28. Qxb3 {[%emt 0:01:29]} Qxf4 {[%emt 0:00:05]} 29. Rc6 {[%emt 0:03:33]} Kg7 {[%emt 0:01:40]} 30. Qxb6 {[%emt 0:00:32]} Qxd4 {[%emt 0:00:19]} 31. Qxd4+ {[%emt 0:04:22]} Rxd4 {[%emt 0:00:07]} 32. Rc7 {[%emt 0:03:16]} Be6 {[%emt 0:01:00]} 33. Re1 {[%emt 0:02:59]} Rb8 {[%emt 0:00:46]} 34. a3 {[%emt 0:02:26]} Kh6 {[%emt 0:00:44]} 35. h3 {[%emt 0:00:29]} Ra4 {[%emt 0:00:13]} 36. Ra1 {[%emt 0:02:24]} Rb3 {[%emt 0:00:39]} 37. Rd1 {[%emt 0:01:32]} Rbxa3 {[%emt 0:00:19]} 38. Rd8 {[%emt 0:00:29]} Ra1+ {[%emt 0:00:34]} 39. Kh2 {[%emt 0:00:06]} R4a2 {[%emt 0:00:19]} 40. Kg3 {[%emt 0:00:00]} Rf1 {[%emt 0:00:00]} 41. Kf4 {[%emt 0:02:09]} Rfxf2 {[%emt 0:01:40]} 42. Rb7 {[%emt 0:01:37]} Rfd2 {[%emt 0:16:50]} 43. Rh8+ {[%emt 0:10:13]} Kg7 {[%emt 0:00:08]} 44. Kg5 {[%emt 0:01:30]} Ra5+ {[%emt 0:00:37]} 0-1